{"text_format":"1","workbook":"xlsx","n_sheets":3,"sheets":["Feuil1","Feuil2","Feuil3"],"not_rendered":{"charts":0,"images":1,"macros":0,"external_links":0,"defined_names":0,"comments":0,"pivot_tables":0},"unopened":[],"bounds":{"document_bytes":16777216,"sheet_cells":100000,"rows_first":2000,"rows_last":500,"rows_between":2000,"halvings":0,"cell_chars":16384,"cell_head_chars":4096},"cells_cut":0,"cells_raw":0,"read":"whole","date_system":"1900"}

{"sheet":"Feuil1","index":0,"n_rows":81,"n_cols":4,"rows_kept":81,"cut":false,"hidden":false,"merged":[]}
["Mesures","Données en cm",null,"Credits : Vol1 Modélisme de mode de Teresa Gilewska"]
["Tour poitrine",null,null,"Réalisé par:"]
["Tour taille"]
["Tour petite hanches",null,null,"Note:"]
["Tour bassin",null,null,"Il est nécessaire de posséder le livre pour"]
["Longueur dos",null,null,"comprendre les données ci-dessous."]
["Longueur devant",null,null,"Ce document est simplement une aide"]
["Hauteur des petites hanches (+/-10cm)",null,null,"et ne peut se subsituer au livre."]
["Hauteur bassin (+/-20cm)",null,null,"Les cellules bleus fonçées sont modifiables."]
["Hauteur poitrine"]
["Ecart poitrine"]
["Carrure dos"]
["Carrure devant"]
["Tour encolure"]
["Longueur épaule"]
[]
["Construction du patron de base buste"]
[]
["Cadre devant"]
["Hauteur",{"$f":"B7","v":0}]
["Largeur",{"$f":"B2/4+1","v":1}]
["Cadre dos"]
["Hauteur",{"$f":"B6","v":0}]
["Largeur",{"$f":"B2/4-1","v":-1}]
[]
["Encolure dos",null,"Arrondi"]
["Hauteur/profondeur encolure",{"$f":"B14/16","v":0},{"$f":"ROUND(B27,1)","v":0}]
["Largeur encolure",{"$f":"B14/6","v":0},{"$f":"ROUND(B28,1)","v":0}]
["Sur la bissectrice profondeur/largeur porter 1,5cm"]
["Encolure devant"]
["Hauteur/profondeur encolure",{"$f":"B14/6+2","v":2},{"$f":"ROUND(B31,1)","v":2}]
["Largeur encolure",{"$f":"B14/6","v":0},{"$f":"ROUND(B32,1)","v":0}]
["Sur la bissectrice profondeur/largeur porter 2,5cm"]
[]
["Epaule"]
["Dos : Tracer angle 18° longueur :",{"$f":"B15","v":0}]
["Devant : Tracer angle 26° longueur :",{"$f":"B15","v":0}]
[]
["Emmanchure"]
["Hauteur ",{"$f":"B6/2+1","v":1}]
["Tracer au dessus de la ligne de taille pour devant et dos"]
[]
["Ligne carrure"]
["Hauteur carrure",{"$f":"(B6-B40-B27)/3+1","v":0.66666666666666674},{"$f":"ROUND(B44,1)","v":0.7}]
["Tracer à partir de la ligne d'emmanchure"]
["Largeur demi-carrure dos",{"$f":"B12/2","v":0}]
["Largeur demi-carrure devant",{"$f":"B13/2","v":0}]
["Reporter les largeurs"]
["Sur les bissectrices emmanchure/hauteur carrure porter 3cm pour le dos et 2,3cm pour le devant."]
[]
["Pince bretelle"]
["Hauteur poitrine",{"$f":"B10","v":0}]
["Demi-écart poitrine",{"$f":"B11/2","v":0}]
["Valeur de pince",{"$f":"B2/20","v":0}]
["Demi-pince",{"$f":"B54/2","v":0}]
["Moitié de la longueur d'épaule",{"$f":"B15/2","v":0}]
["Tracer la hauteur poitrine et écart poitrine"]
["Tracer premier bras de demi-pince jusqu'au téton"]
["Tracer demi bras de la deuxième pince de la même longueur que le premier bras."]
["Rallonger la ligne d'épaule de la valeur de la pince avec un angle de 72° par apport au deuxième bras de la pince."]
["Ajouter la valeur absorbée de la pince à la ligne d'emmanchure. Tracer la courbe d'emmanchure."]
[]
["Pince taille"]
["Valeur à absorber par demi patron",{"$f":"(B2-B3)/2","v":0}]
["Vérifier que le total est égal à la valeur à absorber ci-dessus."]
["Pince milieu dos (1 à 2cm)",1]
["2 pinces côté (Max 4cm) chacunes",3]
["2 pince dos (max3cm) Chacune de :",{"$f":"(B64-B66-B67)/2","v":-2}]
["2 pinces devant (max3cm). Chacune de:",{"$f":"(B64-B66-B67)/2","v":-2}]
["Vérification du total",{"$f":"SUM(B66,B68,B69,B67)","v":0}]
["Tracer les pinces.  Les pinces dos ne dépassent pas la ligne de carrure."]
["Le pinces devant ne dépassent pas le téton. Respecter platitude de 2cm sur le téton."]
[]
["Pince d'épaule dos"]
["Valable pour les grandes tailles ou tissus lourds."]
["Valeur de pince",1]
["Longueur",7]
["Tracer la pince avec un angle de 90° par rapport à la ligne d'épaule."]
[]
["Pince côté"]
["Placer à partir de la taille à ",{"$f":"B40-4","v":-3}]

{"sheet":"Feuil2","index":1,"n_rows":1,"n_cols":1,"rows_kept":1,"cut":false,"hidden":false,"merged":[]}
["hop"]

{"sheet":"Feuil3","index":2,"n_rows":0,"n_cols":0,"rows_kept":0,"cut":false,"hidden":false,"merged":[]}